bitfinex-derivatives/quotes_SOLF0:USTF0_20250310
["timestamp","ask_amount","ask_price","bid_price","bid_amount"]
[1741582763998,6.40441458,128.28,128.27,36.5166]
[1741582771902,1.9352,128.35,128.27,28.72]
[1741582772104,1.9352,128.35,128.33,7.7929]
[1741582772300,1.9352,128.35,128.31,8.84141151]
[1741582772606,8.84141151,128.33,128.29,37.56141151]
[1741582772804,8.84141151,128.33,128.29,8.84141151]
[1741582773106,0.05762145,128.32,128.3,0.05202138]
[1741582776614,7.85122145,128.32,128.3,0.05202138]
[1741582777212,0.05762145,128.32,128.3,7.84682138]
[1741582777410,0.05762145,128.32,128.3,0.05202138]
[1741582777902,7.85122145,128.32,128.3,0.05202138]
[1741582778103,0.05762145,128.32,128.3,0.05202138]
[1741582778811,0.05762145,128.32,128.3,8.89343289]
[1741582779011,7.85152145,128.32,128.3,8.89343289]
[1741582780608,7.7942,128.31,128.3,8.89343289]
[1741582781014,0.05762145,128.32,128.3,8.89343289]
[1741582781716,7.85162145,128.32,128.3,8.89343289]
[1741582782214,0.05762145,128.32,128.3,8.89343289]
[1741582783315,7.85142145,128.32,128.3,8.89343289]
[1741582784512,0.05762145,128.32,128.3,16.68783289]
[1741582784712,0.05762145,128.32,128.3,8.89343289]
[1741582785519,0.05762145,128.32,128.3,16.68793289]
[1741582785919,7.85122145,128.32,128.3,8.89343289]
[1741582786217,0.05762145,128.32,128.3,8.89343289]
[1741582786917,7.85162145,128.32,128.3,8.89343289]
[1741582787714,7.85152145,128.32,128.3,8.89343289]
[1741582787913,0.05762145,128.32,128.3,8.89343289]
[1741582789516,0.05762145,128.32,128.3,16.68793289]
[1741582790420,0.05762145,128.32,128.3,8.89343289]
[1741582791123,0.05762145,128.32,128.3,16.68793289]
[1741582791418,0.05762145,128.32,128.3,8.89343289]
[1741582791717,7.85152145,128.32,128.3,8.89343289]
[1741582791919,0.05762145,128.32,128.3,0.05202138]
[1741582793013,7.85152145,128.32,128.3,0.05202138]
[1741582794619,7.7942,128.31,128.3,0.05202138]
[1741582795319,0.05762145,128.32,128.3,0.05202138]
[1741582795525,7.85142145,128.32,128.3,0.05202138]
[1741582795720,7.85142145,128.32,128.31,8.84141151]
[1741582796322,0.05762145,128.32,128.31,8.84141151]
[1741582798529,0.05762145,128.32,128.31,16.63561151]
[1741582798934,0.05762145,128.32,128.31,8.84141151]
[1741582800335,0.05762145,128.32,128.3,0.05202138]
[1741582800933,7.85152145,128.32,128.3,0.05202138]
[1741582801122,0.05762145,128.32,128.3,0.05202138]
[1741582803634,7.7942,128.31,128.3,0.05202138]
[1741582804736,11.6942,128.31,128.3,2.138e-05]
[1741582806139,20.53561151,128.31,128.3,2.138e-05]
[1741582806337,16.63561151,128.31,128.3,2.138e-05]
[1741582809747,7.7942,128.31,128.3,2.138e-05]
[1741582809943,0.05762145,128.32,128.3,2.138e-05]
[1741582811247,8.84141151,128.31,128.3,2.138e-05]
[1741582811640,16.63561151,128.31,128.3,2.138e-05]
[1741582811945,0.05762145,128.32,128.3,2.138e-05]
[1741582813447,7.85142145,128.32,128.3,2.138e-05]
[1741582813841,8.89903296,128.32,128.3,2.138e-05]
[1741582814047,37.59903296,128.32,128.3,2.138e-05]
[1741582814443,7.7942,128.31,128.3,2.138e-05]
[1741582818241,16.63561151,128.31,128.3,2.138e-05]
[1741582821753,7.7942,128.31,128.3,2.138e-05]
[1741582821951,7.85132145,128.32,128.3,2.138e-05]
[1741582822150,0.05762145,128.32,128.3,2.138e-05]
[1741582823452,7.7942,128.31,128.3,2.138e-05]
[1741582823655,0.05762145,128.32,128.3,2.138e-05]
[1741582824052,0.05762145,128.32,128.31,16.63561151]
[1741582824247,0.05762145,128.32,128.31,8.84141151]
[1741582824451,0.05762145,128.32,128.3,2.138e-05]
[1741582824952,0.05762145,128.32,128.31,8.84141151]
[1741582825152,0.05762145,128.32,128.31,16.63561151]
[1741582826660,0.05762145,128.32,128.31,8.84141151]
[1741582826857,0.05762145,128.32,128.3,2.138e-05]
[1741582828264,7.7942,128.31,128.3,2.138e-05]
[1741582828758,16.63561151,128.31,128.3,2.138e-05]
[1741582828958,45.31561151,128.31,128.3,2.138e-05]
[1741582829557,49.21561151,128.31,128.3,2.138e-05]
[1741582829753,8.84141151,128.28,128.25,32.19495395]
[1741582829958,37.52141151,128.28,128.25,32.19495395]
[1741582831165,7.7966,128.27,128.25,32.25308556]
[1741582831364,37.57855501,128.28,128.25,32.25308556]
[1741582831563,45.37475501,128.28,128.25,32.25308556]
[1741582831764,37.57855501,128.28,128.25,32.25308556]
[1741582832463,7.7968,128.27,128.25,32.25308556]
[1741582832658,7.7968,128.27,128.25,0.05813161]
[1741582833462,37.57855501,128.28,128.25,0.05813161]
[1741582833662,45.37475501,128.28,128.25,0.05813161]
[1741582833860,37.57855501,128.28,128.25,0.05813161]
[1741582834366,0.0571435,128.28,128.25,8.89954312]
[1741582834762,7.8536435,128.28,128.25,8.89954312]
[1741582835768,7.7966,128.27,128.25,8.89954312]
[1741582835967,0.0571435,128.28,128.25,8.89954312]
[1741582836661,0.0571435,128.28,128.27,8.84141151]
[1741582838566,0.0571435,128.28,128.27,16.63801151]
[1741582844971,0.0571435,128.28,128.27,8.84141151]
[1741582845772,0.0571435,128.28,128.25,0.05813161]
[1741582846972,7.8536435,128.28,128.25,0.05813161]
[1741582847481,0.0571435,128.28,128.25,0.05813161]
[1741582847674,8.89855501,128.28,128.25,0.05813161]
[1741582848082,7.7972,128.26,128.25,0.05813161]
[1741582849585,0.0571435,128.28,128.25,8.89954312]
[1741582849784,0.0571435,128.28,128.27,8.84141151]
[1741582850375,0.0571435,128.28,128.27,16.63801151]
[1741582850778,0.0571435,128.28,128.25,8.89954312]
[1741582851684,0.0571435,128.28,128.25,16.69704312]
[1741582852278,0.0571435,128.28,128.25,0.05813161]
[1741582855781,0.0571435,128.28,128.26,7.7972]
[1741582856185,0.0571435,128.28,128.27,7.7966]
[1741582857581,0.0571435,128.28,128.27,50.26040661]
[1741582859889,4.35e-05,128.28,128.27,54.16040661]
[1741582860093,1.9915,128.36,128.31,7.7937]
[1741582860497,1.9915,128.36,128.32,7.7936]
[1741582861294,0.05078807,128.35,128.33,7.84311167]
[1741582861495,0.05078807,128.35,128.33,0.05021167]
[1741582862488,0.05078807,128.35,128.34,42.78380661]
[1741582862687,0.05078807,128.35,128.33,0.05021167]
[1741582865393,0.05078807,128.35,128.33,13.83401828]
[1741582865695,0.05078807,128.35,128.34,7.7924]
[1741582865991,8.807e-05,128.35,128.34,9.8055]
[1741582866187,1.9756,128.42,128.38,7.7899]
[1741582866391,31.1663,128.44,128.37,13.78380661]
[1741582866701,7.7874,128.43,128.38,7.7898]
[1741582867190,6.19854831,128.41,128.4,7.7887]
[1741582868000,6.19854831,128.41,128.39,44.95690661]
[1741582868200,6.19854831,128.41,128.39,52.74600661]
[1741582868509,6.19854831,128.41,128.39,44.95690661]
[1741582869404,10.84094532,128.45,128.39,44.95690661]
[1741582869707,10.84094532,128.45,128.4,13.78380661]
[1741582869908,18.62684532,128.45,128.4,50.73210661]
[1741582870111,7.7859,128.45,128.4,50.73210661]
[1741582870296,7.7851,128.46,128.42,7.787]
[1741582870500,2.0263,128.48,128.42,13.78380661]
[1741582870696,0.05321779,128.44,128.43,29.24]
[1741582870902,0.05321779,128.44,128.43,37.0268]
[1741582871104,2.0263,128.48,128.43,37.0268]
[1741582871403,0.05168502,128.45,128.43,37.0268]
[1741582871608,0.05168502,128.45,128.44,7.7863]
[1741582872003,0.05168502,128.45,128.44,21.57010661]
[1741582872602,0.05168502,128.45,128.44,23.65240661]
[1741582872896,0.05168502,128.45,128.42,0.05066128]
[1741582873102,1.98768502,128.45,128.42,0.05066128]
[1741582873503,0.05168502,128.45,128.42,0.05066128]
[1741582873903,0.05168502,128.45,128.42,13.83446789]
[1741582874307,0.05168502,128.45,128.43,7.7865]
[1741582874606,0.05168502,128.45,128.44,43.02380661]
[1741582875207,0.05168502,128.45,128.44,50.81010661]
[1741582875411,2.0706,128.52,128.44,43.02380661]
[1741582875605,7.7828,128.5,128.46,21.56870661]
[1741582875912,2.0706,128.52,128.44,43.02380661]
[1741582876104,7.7849,128.47,128.44,43.02380661]
[1741582876308,13.78380661,128.51,128.44,29.24]
[1741582876504,13.78380661,128.51,128.42,29.24]
[1741582876705,0.05039069,128.47,128.44,0.05880256]
[1741582876905,29.29039069,128.47,128.44,0.05880256]
[1741582877113,2.0881,128.46,128.44,0.05880256]
[1741582877300,7.7857,128.45,128.44,0.05880256]
[1741582878004,2.0881,128.46,128.44,0.05880256]
[1741582878615,0.05039069,128.47,128.45,29.26]
[1741582879111,0.05039069,128.47,128.45,37.0453]
[1741582879707,0.05039069,128.47,128.46,7.7851]
[1741582881412,9.069e-05,128.47,128.46,7.7851]
[1741582883109,9.069e-05,128.47,128.46,29.76379523]
[1741582884018,6.17332525,128.53,128.51,7.7817]
[1741582884410,6.17332525,128.53,128.49,29.24]
[1741582884615,6.17332525,128.53,128.5,7.7822]
[1741582884814,6.17332525,128.53,128.49,29.24]
[1741582885216,0.05233183,128.52,128.51,7.7821]
[1741582885516,0.05233183,128.52,128.5,0.04995508]
[1741582886520,0.05233183,128.52,128.5,7.83245508]
[1741582886723,0.05233183,128.52,128.5,0.04995508]
[1741582887015,0.05233183,128.52,128.51,7.7821]
[1741582887215,0.05233183,128.52,128.5,0.04995508]
[1741582887622,0.05233183,128.52,128.5,7.83225508]
[1741582888422,0.05233183,128.52,128.51,7.7821]
[1741582889620,0.05233183,128.52,128.5,0.04995508]
[1741582890217,7.83423183,128.52,128.5,0.04995508]
[1741582890417,0.05233183,128.52,128.5,0.04995508]
[1741582891021,0.05233183,128.52,128.51,7.7821]
[1741582893426,0.05233183,128.52,128.5,7.83235508]
[1741582894326,0.05233183,128.52,128.51,7.7821]
[1741582894726,0.05233183,128.52,128.5,0.04995508]
[1741582896630,7.7821,128.51,128.5,0.04995508]
[1741582897927,7.7833,128.5,128.45,266.6378]
[1741582898130,2.0292,128.51,128.45,295.7578]
[1741582898332,2.0292,128.51,128.45,295.7378]
[1741582898533,2.0292,128.51,128.44,29.1]
[1741582898834,29.1,128.5,128.44,29.1]
[1741582899224,0.0570985,128.49,128.46,0.05860429]
[1741582899727,7.7844,128.48,128.46,0.05860429]
[1741582899928,0.0570985,128.49,128.46,0.05860429]
[1741582901630,7.8405985,128.49,128.46,0.05860429]
[1741582902228,0.0570985,128.49,128.46,0.05860429]
[1741582902927,7.7854,128.46,128.41,42.85983487]
[1741582903731,2.1276,128.48,128.41,42.85983487]
[1741582904133,0.05973917,128.46,128.43,0.05060275]
[1741582904334,7.84513917,128.46,128.43,0.05060275]
[1741582904734,0.05973917,128.46,128.43,7.83720275]
[1741582904931,0.05973917,128.46,128.45,13.73983487]
[1741582905337,0.05973917,128.46,128.45,21.52553487]
[1741582905535,0.05973917,128.46,128.43,0.05060275]
[1741582905740,0.05973917,128.46,128.43,7.83750275]
[1741582906129,0.05973917,128.46,128.43,0.05060275]
[1741582906930,0.05973917,128.46,128.44,7.786]
[1741582907439,0.05973917,128.46,128.43,0.05060275]
[1741582908535,7.84523917,128.46,128.43,0.05060275]
[1741582909035,0.05973917,128.46,128.43,0.05060275]
[1741582909743,0.05973917,128.46,128.44,7.7859]
[1741582911044,0.05973917,128.46,128.45,7.7857]
[1741582911731,0.05973917,128.46,128.45,50.54553487]
[1741582913844,0.05973917,128.46,128.45,42.75983487]
[1741582914137,0.05973917,128.46,128.44,7.7862]
[1741582914644,0.05973917,128.46,128.43,29.09060275]
[1741582914645,0.05973917,128.46,128.45,7.7857]
[1741582916345,0.05973917,128.46,128.43,29.09060275]
[1741582917734,0.05973917,128.46,128.44,13.73983487]
[1741582917941,0.05973917,128.46,128.45,7.7857]
[1741582921243,0.05973917,128.46,128.43,29.09060275]
[1741582921445,0.05973917,128.46,128.43,0.05060275]
[1741582921645,7.84533917,128.46,128.43,0.05060275]
[1741582922349,7.84533917,128.46,128.43,7.83750275]
[1741582923048,7.84533917,128.46,128.43,0.05060275]
[1741582924345,7.84533917,128.46,128.43,7.83740275]
[1741582925142,0.05973917,128.46,128.43,7.83740275]
[1741582925844,0.05973917,128.46,128.44,13.73983487]
[1741582926850,0.05973917,128.46,128.45,7.7857]
[1741582927041,0.05973917,128.46,128.44,13.73983487]
[1741582928352,0.05973917,128.46,128.45,36.7057]
[1741582928543,6.17332525,128.53,128.45,28.92]
[1741582928747,6.17332525,128.53,128.46,13.73983487]
[1741582928950,35.19332525,128.53,128.46,21.52463487]
[1741582929344,13.95442525,128.53,128.46,13.73983487]
[1741582929545,6.17332525,128.53,128.48,13.73983487]
[1741582929759,0.05258215,128.51,128.48,42.83308849]
[1741582930251,0.05258215,128.51,128.5,7.7823]
[1741582930443,0.05258215,128.51,128.48,42.83308849]
[1741582930850,0.05258215,128.51,128.49,7.7829]
[1741582932056,0.05258215,128.51,128.49,7.7833]
[1741582932555,0.05258215,128.51,128.5,7.7827]
[1741582933147,0.05258215,128.51,128.49,7.783]
[1741582933855,0.05258215,128.51,128.48,50.61668849]
[1741582934050,0.05258215,128.51,128.43,32.19495395]
[1741582934254,35.19332525,128.53,128.43,45.93478882]
[1741582934255,29.04,128.5,128.43,45.93478882]
[1741582934862,7.7844,128.48,128.43,45.93478882]
[1741582935159,29.04,128.5,128.43,45.93478882]
[1741582935360,0.05566541,128.47,128.44,0.05304955]
[1741582936054,0.05566541,128.47,128.44,7.83914955]
[1741582936259,0.05566541,128.47,128.44,0.05304955]
[1741582936661,7.7857,128.45,128.44,0.05304955]
[1741582937164,7.7853,128.46,128.44,0.05304955]
[1741582937454,0.05566541,128.47,128.44,0.05304955]
[1741582939562,0.05566541,128.47,128.44,13.79288442]
[1741582939764,7.84066541,128.47,128.44,13.79288442]
[1741582940061,0.05566541,128.47,128.44,13.79288442]
[1741582940259,7.84046541,128.47,128.44,13.79288442]
[1741582940462,7.84046541,128.47,128.44,0.05304955]
[1741582940762,0.05566541,128.47,128.44,0.05304955]
[1741582941267,7.7855,128.46,128.44,0.05304955]
[1741582941561,0.05566541,128.47,128.44,0.05304955]
[1741582941859,7.7851,128.46,128.44,0.05304955]
[1741582942069,0.05566541,128.47,128.44,0.05304955]
[1741582942365,7.7854,128.46,128.44,0.05304955]
[1741582942562,0.05566541,128.47,128.44,0.05304955]
[1741582943063,7.7855,128.46,128.44,0.05304955]
[1741582943458,0.05566541,128.47,128.44,0.05304955]
[1741582943665,7.7857,128.45,128.44,0.05304955]
[1741582945565,0.05566541,128.47,128.44,0.05304955]
[1741582945761,0.05566541,128.47,128.44,7.83934955]
[1741582945961,0.05566541,128.47,128.44,13.79288442]
[1741582946163,0.05566541,128.47,128.44,21.57888442]
[1741582946770,0.05566541,128.47,128.45,7.7851]
[1741582947070,0.05566541,128.47,128.44,13.79288442]
[1741582947271,0.05566541,128.47,128.45,7.7853]
[1741582947472,0.05566541,128.47,128.44,13.79288442]
[1741582948260,0.05566541,128.47,128.46,21.52493487]
[1741582948971,10.26152525,128.53,128.46,27.47966974]
[1741582949173,10.26152525,128.53,128.49,13.73983487]
[1741582949770,10.26152525,128.53,128.5,7.7826]
[1741582949973,0.05018626,128.52,128.5,29.13886181]
[1741582950475,0.05018626,128.52,128.5,36.92116181]
[1741582950675,0.05018626,128.52,128.5,29.13886181]
[1741582952377,0.05018626,128.52,128.51,7.7821]
[1741582952578,0.05018626,128.52,128.5,29.13886181]
[1741582953172,0.05018626,128.52,128.51,21.52193487]
[1741582953371,6.17332525,128.53,128.51,13.73983487]
[1741582953569,4.1475,128.59,128.55,7.7796]
[1741582953780,1.9709,128.63,128.58,13.73983487]
[1741582953981,32.80854597,128.64,128.58,13.73983487]
[1741582954281,34.77944597,128.64,128.56,13.73983487]
[1741582954476,13.73983487,128.63,128.53,29.1]
[1741582954679,13.7942316,128.59,128.57,1.629e-05]
[1741582954978,35.2238,128.58,128.49,13.73983487]
[1741582955183,35.2238,128.58,128.51,7.7816]
[1741582955381,35.2238,128.58,128.51,13.73983487]
[1741582955570,6.0038,128.58,128.5,29.24]
[1741582955775,7.7792,128.56,128.5,29.24]
[1741582955980,0.05633207,128.55,128.53,0.05004406]
[1741582957382,0.05633207,128.55,128.53,13.78987893]
[1741582957587,0.05633207,128.55,128.53,43.08987893]
[1741582958379,0.05633207,128.55,128.53,0.05004406]
[1741582958778,7.83643207,128.55,128.53,0.05004406]
[1741582959278,0.05633207,128.55,128.53,0.05004406]
[1741582959479,7.7803,128.54,128.53,0.05004406]
[1741582960384,7.7815,128.52,128.49,13.73983487]
[1741582960586,7.7815,128.52,128.48,286.08]
[1741582960779,29.3,128.54,128.48,256.78]
[1741582960980,29.3,128.54,128.47,15.74563487]
[1741582961286,29.3,128.54,128.47,2.0058]
[1741582961492,29.3,128.54,128.47,9.7903]
[1741582961788,0.05548194,128.52,128.49,0.05939693]
[1741582962178,7.7825,128.51,128.49,0.05939693]
[1741582963788,7.7827,128.5,128.49,0.05939693]
[1741582965791,7.7841,128.48,128.44,21.52573487]
[1741582966086,33.1127,128.51,128.44,13.73983487]
[1741582966290,7.7841,128.48,128.45,7.7856]
[1741582966489,7.7841,128.48,128.44,13.73983487]
[1741582966790,7.7841,128.48,128.44,21.52583487]
[1741582966985,0.05119935,128.47,128.45,0.05320272]
[1741582968192,0.05119935,128.47,128.45,7.83880272]
[1741582968395,0.05119935,128.47,128.45,0.05320272]
[1741582969094,0.05119935,128.47,128.46,50.72493487]
[1741582975495,0.05119935,128.47,128.45,0.05320272]
[1741582976197,0.05119935,128.47,128.45,7.83860272]
[1741582976396,0.05119935,128.47,128.45,0.05320272]
[1741582976709,0.05119935,128.47,128.45,7.83850272]
[1741582980222,0.05119935,128.47,128.45,0.05320272]
[1741582980512,0.05119935,128.47,128.46,7.7851]
[1741582980815,0.05119935,128.47,128.46,36.8851]
[1741582986416,0.05119935,128.47,128.45,7.83870272]
[1741582988220,0.05119935,128.47,128.46,7.7851]
[1741582988416,0.05119935,128.47,128.45,8.84603495]
[1741582988722,0.05119935,128.47,128.46,7.7851]
[1741582989518,7.7851,128.46,128.45,0.05320272]
[1741582989718,8.84403158,128.47,128.41,8.79283223]
[1741582990115,8.79283223,128.47,128.43,16.57973223]
[1741582990314,31.1074,128.48,128.43,16.57973223]
[1741582990718,31.1074,128.48,128.43,8.79283223]
[1741582990917,8.84794606,128.47,128.44,0.05998718]
[1741582991621,0.05511383,128.47,128.44,0.05998718]
[1741582991812,7.83971383,128.47,128.44,0.05998718]
[1741582992017,0.05511383,128.47,128.44,0.05998718]
[1741582992212,7.83991383,128.47,128.44,0.05998718]
[1741582992421,0.05511383,128.47,128.44,0.05998718]
[1741582992821,8.84794606,128.47,128.44,0.05998718]
[1741582993225,7.7864,128.44,128.41,16.58073223]
[1741582993525,7.7864,128.44,128.41,8.79283223]
[1741582994621,7.7864,128.44,128.41,0.05496866]
[1741582994622,0.05883173,128.44,128.41,0.05496866]
[1741582994829,7.7875,128.42,128.41,0.05496866]
[1741582995223,8.79283223,128.43,128.38,8.79283223]
[1741582995424,7.7888,128.4,128.38,8.79283223]
[1741582995628,8.79283223,128.43,128.38,8.79283223]
[1741582995928,7.7884,128.41,128.38,8.79283223]
[1741582996331,8.79283223,128.43,128.38,16.58243223]
[1741582996624,0.05269066,128.41,128.38,8.84235321]
[1741582996829,8.84552289,128.41,128.38,0.04952098]
[1741582997227,0.05269066,128.41,128.38,0.04952098]
[1741582997424,0.05269066,128.41,128.38,8.84235321]
[1741582997624,0.05269066,128.41,128.38,16.63185321]
[1741582998028,0.05269066,128.41,128.39,7.7892]
[1741582998234,0.05269066,128.41,128.38,8.84235321]
[1741582998734,0.05269066,128.41,128.39,7.7889]
[1741582999031,0.05269066,128.41,128.38,8.84235321]
[1741582999234,0.05269066,128.41,128.4,7.7887]
[1741582999426,0.05269066,128.41,128.38,0.04952098]
[1741582999626,0.05269066,128.41,128.39,7.7893]
[1741583000726,0.05269066,128.41,128.38,8.84235321]
[1741583001030,8.84552289,128.41,128.38,0.04952098]
[1741583001330,37.86552289,128.41,128.38,0.04952098]
[1741583001530,45.65412289,128.41,128.38,0.04952098]
[1741583002130,37.86552289,128.41,128.38,0.04952098]
[1741583002430,0.05269066,128.41,128.38,0.04952098]
[1741583002631,0.05269066,128.41,128.39,8.79283223]
[1741583003826,0.05269066,128.41,128.39,16.58213223]
[1741583004928,0.05269066,128.41,128.39,8.79283223]
[1741583005928,0.05269066,128.41,128.38,0.04952098]
[1741583006327,7.84119066,128.41,128.38,0.04952098]
[1741583006532,0.05269066,128.41,128.38,0.04952098]
[1741583007035,7.7888,128.4,128.38,0.04952098]
[1741583008637,7.84099066,128.41,128.38,0.04952098]
[1741583008833,0.05269066,128.41,128.39,8.79283223]
[1741583009133,0.05269066,128.41,128.39,16.58173223]
[1741583009728,0.05269066,128.41,128.39,8.79283223]
[1741583009930,7.84089066,128.41,128.39,8.79283223]
[1741583011237,0.05269066,128.41,128.39,16.58213223]
[1741583011432,0.05269066,128.41,128.39,7.7893]
[1741583011633,0.05269066,128.41,128.38,8.84235321]
[1741583011939,0.05269066,128.41,128.4,16.58153223]
[1741583012236,9.066e-05,128.41,128.4,16.58153223]
[1741583014542,9.066e-05,128.41,128.4,7.7887]
[1741583014837,9.066e-05,128.41,128.39,8.79283223]
[1741583015231,9.066e-05,128.41,128.38,28.98952098]
[1741583015428,9.066e-05,128.41,128.38,0.04952098]
[1741583015639,9.066e-05,128.41,128.38,8.84235321]
[1741583016039,9.066e-05,128.41,128.38,0.04952098]
[1741583017044,7.7893,128.4,128.38,0.04952098]
[1741583017236,9.066e-05,128.41,128.38,0.04952098]
[1741583017635,7.78849066,128.41,128.38,0.04952098]
[1741583018543,9.066e-05,128.41,128.39,7.7892]
[1741583018839,9.066e-05,128.41,128.38,0.04952098]
[1741583019143,9.066e-05,128.41,128.4,7.7887]
[1741583028947,9.066e-05,128.41,128.39,7.7889]
[1741583029451,9.066e-05,128.41,128.38,28.88952098]
[1741583030258,7.78829066,128.41,128.38,36.67902098]
[1741583030557,9.066e-05,128.41,128.38,36.67902098]
[1741583031259,9.066e-05,128.41,128.38,0.04952098]
[1741583031559,7.7891,128.4,128.38,0.04952098]
[1741583031857,9.066e-05,128.41,128.38,0.04952098]
[1741583032055,7.7892,128.4,128.38,0.04952098]
[1741583034159,9.066e-05,128.41,128.38,0.04952098]
[1741583034361,7.78829066,128.41,128.38,7.83912098]
[1741583034955,9.066e-05,128.41,128.38,7.83912098]
[1741583035156,9.066e-05,128.41,128.38,0.04952098]
[1741583035653,7.78859066,128.41,128.38,0.04952098]
[1741583035854,9.066e-05,128.41,128.38,0.04952098]
[1741583036163,7.7891,128.4,128.38,0.04952098]
[1741583037458,7.7893,128.39,128.38,0.04952098]
[1741583037664,16.59504701,128.39,128.38,0.04952098]
[1741583038265,7.7893,128.39,128.38,0.04952098]
[1741583038759,2.0064,128.4,128.38,0.04952098]
[1741583040561,7.7893,128.39,128.38,0.04952098]
[1741583041561,9.7954,128.4,128.38,0.04952098]
[1741583041965,2.0064,128.4,128.38,0.04952098]
[1741583042371,7.7893,128.39,128.38,0.04952098]
[1741583042869,7.7909,128.37,128.34,28.68]
[1741583043461,7.7903,128.38,128.34,36.4719]
[1741583043963,0.05005921,128.37,128.35,0.05803632]
[1741583044465,0.05005921,128.37,128.35,7.84963632]
[1741583044670,0.05005921,128.37,128.35,0.05803632]
[1741583045260,7.84065921,128.37,128.35,0.05803632]
[1741583045768,0.05005921,128.37,128.35,0.05803632]
[1741583045968,7.7912,128.36,128.35,0.05803632]
[1741583046558,0.05005921,128.37,128.35,0.05803632]
[1741583046559,7.84085921,128.37,128.35,0.05803632]
[1741583046759,0.05005921,128.37,128.35,0.05803632]
[1741583048972,7.84095921,128.37,128.35,0.05803632]
[1741583049169,0.05005921,128.37,128.35,0.05803632]
[1741583050167,0.05005921,128.37,128.36,7.7912]
[1741583050769,0.05005921,128.37,128.35,36.52943632]
[1741583051876,7.84065921,128.37,128.35,0.05803632]
[1741583052270,0.05005921,128.37,128.35,0.05803632]
[1741583052670,0.05005921,128.37,128.36,7.7912]
[1741583053377,0.05005921,128.37,128.35,7.84953632]
[1741583054070,0.05005921,128.37,128.35,0.05803632]
[1741583054273,7.84065921,128.37,128.35,0.05803632]
[1741583056876,0.05005921,128.37,128.35,0.05803632]
[1741583057579,7.84095921,128.37,128.35,0.05803632]
[1741583058877,0.05005921,128.37,128.35,0.05803632]
[1741583059177,7.7912,128.36,128.35,0.05803632]
[1741583059380,0.05005921,128.37,128.35,0.05803632]
[1741583059571,7.7912,128.36,128.35,0.05803632]
[1741583060676,7.793,128.34,128.31,8.81153166]
[1741583060880,8.81153166,128.35,128.3,7.7946]
[1741583061075,8.81153166,128.35,128.29,8.81153166]
[1741583061677,8.81153166,128.33,128.29,8.81153166]
[1741583061877,7.7936,128.32,128.31,0.05251115]
[1741583062382,8.86213654,128.33,128.31,0.05251115]
[1741583062685,0.05060488,128.33,128.31,8.86404281]
[1741583063182,0.05060488,128.33,128.31,0.05251115]
[1741583064282,7.7936,128.32,128.28,21.14723166]
[1741583064679,8.86213654,128.33,128.28,13.35153166]
[1741583064885,16.65533654,128.33,128.29,7.7951]
[1741583065081,0.05060488,128.33,128.28,13.35153166]
[1741583065280,0.05060488,128.33,128.3,7.7943]
[1741583066178,0.05060488,128.33,128.28,13.35153166]
[1741583066179,7.84360488,128.33,128.29,7.7951]
[1741583066375,8.86213654,128.33,128.28,13.35153166]
[1741583067182,7.7943,128.31,128.28,4.54]
[1741583067585,8.81153166,128.31,128.28,4.54]
[1741583067790,10.95073654,128.33,128.28,4.54]
[1741583068193,10.95073654,128.33,128.29,8.81153166]
[1741583068384,18.74403654,128.33,128.29,16.60673166]
[1741583068893,7.7936,128.32,128.29,16.60673166]
[1741583069189,7.7936,128.32,128.29,8.81153166]
[1741583069388,7.7936,128.32,128.28,12.3358]
[1741583069389,28.7,128.32,128.28,4.54]
[1741583069591,36.4939,128.32,128.28,13.35153166]
[1741583069892,10.95073654,128.33,128.28,13.35153166]
[1741583070089,10.95073654,128.33,128.28,4.54]
[1741583070591,7.7946,128.31,128.28,4.54]
[1741583071293,7.7948,128.3,128.28,4.54]
[1741583071482,13.03663654,128.33,128.28,4.54]
[1741583071483,12.98603166,128.33,128.28,4.54]
[1741583071793,7.7946,128.31,128.28,4.54]
[1741583071990,0.05409498,128.32,128.28,4.54]
[1741583072491,8.81153166,128.31,128.28,4.54]
[1741583072883,7.7952,128.3,128.28,4.54]
[1741583073285,8.81153166,128.31,128.28,4.54]
[1741583073599,7.84799498,128.32,128.28,12.3356]
[1741583073990,0.05409498,128.32,128.29,16.60683166]
[1741583074191,0.05409498,128.32,128.29,8.81153166]
[1741583074488,0.05409498,128.32,128.29,18.66963166]
[1741583074688,0.05409498,128.32,128.29,10.87433166]
[1741583075294,7.84799498,128.32,128.29,10.87433166]
[1741583075892,7.84799498,128.32,128.29,18.66973166]
[1741583075893,0.05409498,128.32,128.29,18.66973166]
[1741583076092,0.05409498,128.32,128.29,9.8582]
[1741583076994,7.84809498,128.32,128.29,2.0628]
[1741583078197,0.05409498,128.32,128.29,2.0628]
[1741583078498,8.86562664,128.32,128.28,33.24]
[1741583078993,7.7946,128.31,128.28,33.24]
[1741583079196,8.86562664,128.32,128.28,4.54]
[1741583079391,8.86562664,128.32,128.26,37.51153166]